[Event "*** Titled Tuesday Blitz"]
[Site "Chess.com"]
[Date "2019.06.04"]
[Round "10"]
[White "Drags95"]
[Black "olksuna"]
[Result "1-0"]
[WhiteElo "2772"]
[BlackElo "2520"]
[TimeControl "180+2"]
[EndTime "15:20:58 PDT"]
[Termination "Drags95 won on time"]

1. e4 {[%clk 0:03:01.9]} 1... c5 {[%clk 0:02:57]} 2. Nf3 {[%clk 0:03:03.2]} 2...
Nc6 {[%clk 0:02:57.7]} 3. Nc3 {[%clk 0:03:02.7]} 3... Nf6 {[%clk 0:02:54.6]} 4.
Bb5 {[%clk 0:03:03.5]} 4... g6 {[%clk 0:02:45.9]} 5. Bxc6 {[%clk 0:02:53.4]}
5... dxc6 {[%clk 0:02:45.7]} 6. e5 {[%clk 0:02:51.6]} 6... Nd5 {[%clk
0:02:42.3]} 7. Ne4 {[%clk 0:02:52.2]} 7... b6 {[%clk 0:02:43.4]} 8. O-O {[%clk
0:02:50.9]} 8... Bg7 {[%clk 0:02:41.9]} 9. d3 {[%clk 0:02:45.5]} 9... Bg4 {[%clk
0:02:36.9]} 10. Re1 {[%clk 0:02:41.1]} 10... O-O {[%clk 0:02:35.1]} 11. h3
{[%clk 0:02:41.2]} 11... Bxf3 {[%clk 0:02:33.2]} 12. Qxf3 {[%clk 0:02:43.1]}
12... Bxe5 {[%clk 0:02:33.9]} 13. Nxc5 {[%clk 0:02:41.4]} 13... Bg7 {[%clk
0:02:12.5]} 14. Ne4 {[%clk 0:02:42.4]} 14... Nb4 {[%clk 0:02:04.6]} 15. Qe2
{[%clk 0:02:39.6]} 15... c5 {[%clk 0:02:05.7]} 16. Bg5 {[%clk 0:02:32.2]} 16...
Qd7 {[%clk 0:02:04.5]} 17. Rad1 {[%clk 0:02:29.5]} 17... f5 {[%clk 0:01:52.9]}
18. c3 {[%clk 0:02:22.2]} 18... Nd5 {[%clk 0:01:47.5]} 19. c4 {[%clk 0:02:01.6]}
19... Nb4 {[%clk 0:01:33.5]} 20. Nc3 {[%clk 0:02:02.7]} 20... e5 {[%clk
0:01:31.9]} 21. a3 {[%clk 0:02:00.5]} 21... Nc6 {[%clk 0:01:31.5]} 22. Nd5
{[%clk 0:02:02.1]} 22... Rae8 {[%clk 0:01:23.5]} 23. f3 {[%clk 0:02:01.6]} 23...
h6 {[%clk 0:01:17.8]} 24. Be3 {[%clk 0:02:02.4]} 24... g5 {[%clk 0:01:13.7]} 25.
b4 {[%clk 0:02:02.1]} 25... cxb4 {[%clk 0:01:14]} 26. axb4 {[%clk 0:02:04]}
26... Qf7 {[%clk 0:01:07.2]} 27. b5 {[%clk 0:02:04.8]} 27... Ne7 {[%clk
0:01:08.1]} 28. Nb4 {[%clk 0:01:52.7]} 28... Ng6 {[%clk 0:00:58.5]} 29. Nc6
{[%clk 0:01:52.9]} 29... e4 {[%clk 0:00:43.8]} 30. fxe4 {[%clk 0:01:41.3]} 30...
fxe4 {[%clk 0:00:38.9]} 31. Rf1 {[%clk 0:01:41.7]} 31... exd3 {[%clk 0:00:35.1]}
32. Qxd3 {[%clk 0:01:42.7]} 32... Qe6 {[%clk 0:00:33.1]} 33. Rxf8+ {[%clk
0:01:39]} 33... Bxf8 {[%clk 0:00:29.6]} 34. Bd2 {[%clk 0:00:56.9]} 34... Bc5+
{[%clk 0:00:29.1]} 35. Kh1 {[%clk 0:00:57.3]} 35... Nh4 {[%clk 0:00:25.9]} 36.
Bc3 {[%clk 0:00:50.8]} 36... Nf5 {[%clk 0:00:21.5]} 37. Be5 {[%clk 0:00:42.2]}
37... Ne3 {[%clk 0:00:07.3]} 38. Rc1 {[%clk 0:00:34.4]} 38... g4 {[%clk
0:00:03.9]} 39. Kh2 {[%clk 0:00:24.2]} 39... gxh3 {[%clk 0:00:03.1]} 40. gxh3
{[%clk 0:00:26.1]} 40... Nf5 {[%clk 0:00:02.7]} 41. Rc2 {[%clk 0:00:22.5]} 41...
Ne3 {[%clk 0:00:02.3]} 42. Re2 {[%clk 0:00:21.5]} 42... Rf8 {[%clk 0:00:03.4]}
43. Rxe3 {[%clk 0:00:14.6]} 43... Bxe3 {[%clk 0:00:04.6]} 44. Qxe3 {[%clk
0:00:15.8]} 44... Qxc4 {[%clk 0:00:06]} 45. Qg3+ {[%clk 0:00:15.2]} 45... Kf7
{[%clk 0:00:06.2]} 46. Qg7+ {[%clk 0:00:15.4]} 46... Ke6 {[%clk 0:00:07.6]} 47.
Qxf8 {[%clk 0:00:09.2]} 47... Qe2+ {[%clk 0:00:08]} 48. Kg3 {[%clk 0:00:09.2]}
48... Qd3+ {[%clk 0:00:08.3]} 49. Qf3 {[%clk 0:00:10]} 49... Qxb5 {[%clk
0:00:07.1]} 50. Nd4+ {[%clk 0:00:10.6]} 50... Kxe5 {[%clk 0:00:07.4]} 51. Nxb5
{[%clk 0:00:12.2]} 1-0

[Event "*** Titled Tuesday Blitz"]
[Site "Chess.com"]
[Date "2019.06.04"]
[Round "10"]
[White "tteshan"]
[Black "guillembaches"]
[Result "1-0"]
[WhiteElo "2259"]
[BlackElo "2287"]
[TimeControl "180+2"]
[EndTime "15:21:02 PDT"]
[Termination "tteshan won on time"]

1. d4 {[%clk 0:02:50.6]} 1... d5 {[%clk 0:03:00.3]} 2. c4 {[%clk 0:02:50.1]}
2... dxc4 {[%clk 0:03:01.2]} 3. e3 {[%clk 0:02:49.2]} 3... e5 {[%clk 0:02:59.3]}
4. Bxc4 {[%clk 0:02:47]} 4... exd4 {[%clk 0:02:52.8]} 5. exd4 {[%clk 0:02:48.9]}
5... Bd6 {[%clk 0:02:53.8]} 6. Nf3 {[%clk 0:02:48]} 6... Nf6 {[%clk 0:02:53.9]}
7. Nc3 {[%clk 0:02:48.9]} 7... O-O {[%clk 0:02:54.1]} 8. O-O {[%clk 0:02:50.1]}
8... Bg4 {[%clk 0:02:52.8]} 9. h3 {[%clk 0:02:48]} 9... Bh5 {[%clk 0:02:53.7]}
10. Bg5 {[%clk 0:02:46.5]} 10... Nbd7 {[%clk 0:02:49.1]} 11. Re1 {[%clk
0:02:42.9]} 11... c6 {[%clk 0:02:45.6]} 12. Qd3 {[%clk 0:02:37.8]} 12... Qc7
{[%clk 0:02:38.4]} 13. Bb3 {[%clk 0:02:25.7]} 13... Bf4 {[%clk 0:02:29.2]} 14.
Bxf4 {[%clk 0:02:15.3]} 14... Qxf4 {[%clk 0:02:30]} 15. Ne5 {[%clk 0:02:11.2]}
15... Rad8 {[%clk 0:02:19]} 16. Qe3 {[%clk 0:01:36.2]} 16... Qxe3 {[%clk
0:02:10.3]} 17. Rxe3 {[%clk 0:01:38.1]} 17... Nb6 {[%clk 0:02:06.7]} 18. Rae1
{[%clk 0:01:37.5]} 18... Rxd4 {[%clk 0:01:58.5]} 19. g4 {[%clk 0:01:28.8]} 19...
Bg6 {[%clk 0:01:59]} 20. Nxg6 {[%clk 0:01:27.5]} 20... hxg6 {[%clk 0:01:59.8]}
21. Re7 {[%clk 0:01:28.1]} 21... Nfd7 {[%clk 0:01:27.4]} 22. Kg2 {[%clk
0:01:12.9]} 22... g5 {[%clk 0:01:24]} 23. Ne4 {[%clk 0:01:06.6]} 23... g6 {[%clk
0:01:06.1]} 24. Nxg5 {[%clk 0:01:04.8]} 24... Rf4 {[%clk 0:01:07.2]} 25. Kg3
{[%clk 0:01:02.6]} 25... Rf6 {[%clk 0:01:02.9]} 26. Ne4 {[%clk 0:01:00.4]} 26...
Kg7 {[%clk 0:00:54]} 27. Nxf6 {[%clk 0:00:59.5]} 27... Kxf6 {[%clk 0:00:55.9]}
28. f4 {[%clk 0:00:58.6]} 28... Nc5 {[%clk 0:00:53.7]} 29. g5+ {[%clk
0:00:58.3]} 29... Kg7 {[%clk 0:00:54.8]} 30. Rc7 {[%clk 0:00:54.4]} 30... Nc8
{[%clk 0:00:37.5]} 31. Bxf7 {[%clk 0:00:38]} 31... Rxf7 {[%clk 0:00:19.6]} 32.
Rxc8 {[%clk 0:00:38.6]} 32... Nd3 {[%clk 0:00:19.7]} 33. Ree8 {[%clk 0:00:38.2]}
33... Rd7 {[%clk 0:00:12.4]} 34. Rg8+ {[%clk 0:00:38.5]} 34... Kf7 {[%clk
0:00:13.3]} 35. Rcf8+ {[%clk 0:00:38.6]} 35... Ke6 {[%clk 0:00:14.5]} 36. Rxg6+
{[%clk 0:00:38.7]} 36... Kd5 {[%clk 0:00:14.6]} 37. b3 {[%clk 0:00:31]} 37...
Re7 {[%clk 0:00:15.5]} 38. Rd8+ {[%clk 0:00:30.8]} 38... Ke4 {[%clk 0:00:16.1]}
39. Rxd3 {[%clk 0:00:27.5]} 39... Kxd3 {[%clk 0:00:16]} 40. f5 {[%clk
0:00:28.9]} 40... c5 {[%clk 0:00:15.2]} 41. f6 {[%clk 0:00:29.4]} 41... Re3+
{[%clk 0:00:10.9]} 42. Kg4 {[%clk 0:00:30]} 42... Re4+ {[%clk 0:00:09.8]} 43.
Kf5 {[%clk 0:00:30.9]} 43... Ke3 {[%clk 0:00:11.1]} 44. Rg7 {[%clk 0:00:26.1]}
44... b5 {[%clk 0:00:11.4]} 45. f7 {[%clk 0:00:26.4]} 45... Rf4+ {[%clk
0:00:12.1]} 46. Kg6 {[%clk 0:00:27.3]} 46... c4 {[%clk 0:00:13.5]} 47. bxc4
{[%clk 0:00:27.6]} 47... bxc4 {[%clk 0:00:14.6]} 48. Rg8 {[%clk 0:00:28.6]}
48... c3 {[%clk 0:00:15.3]} 49. f8=Q {[%clk 0:00:28.8]} 49... Rxf8 {[%clk
0:00:16.2]} 50. Rxf8 {[%clk 0:00:30.7]} 50... c2 {[%clk 0:00:17.7]} 51. Rc8
{[%clk 0:00:31.9]} 1-0

[Event "*** Titled Tuesday Blitz"]
[Site "Chess.com"]
[Date "2019.06.04"]
[Round "10"]
[White "Pechen_Yeltsina"]
[Black "DanielMieles1985"]
[Result "0-1"]
[WhiteElo "2688"]
[BlackElo "2661"]
[TimeControl "180+2"]
[EndTime "15:21:11 PDT"]
[Termination "DanielMieles1985 won by checkmate"]

1. Nf3 {[%clk 0:03:01.9]} 1... d5 {[%clk 0:03:00.1]} 2. g3 {[%clk 0:03:03.3]}
2... c6 {[%clk 0:02:59.2]} 3. Bg2 {[%clk 0:03:04.5]} 3... Bf5 {[%clk 0:03:00.2]}
4. O-O {[%clk 0:03:05.4]} 4... e6 {[%clk 0:03:01.6]} 5. d3 {[%clk 0:03:06.8]}
5... Nf6 {[%clk 0:03:02.3]} 6. Nbd2 {[%clk 0:03:08.3]} 6... h6 {[%clk
0:03:02.8]} 7. Qe1 {[%clk 0:03:09.1]} 7... Bh7 {[%clk 0:03:03]} 8. e4 {[%clk
0:03:10.3]} 8... Be7 {[%clk 0:03:04.5]} 9. c3 {[%clk 0:03:08.2]} 9... O-O {[%clk
0:03:04.3]} 10. Ne5 {[%clk 0:03:07.7]} 10... a5 {[%clk 0:03:00.5]} 11. Qe2
{[%clk 0:03:07.8]} 11... a4 {[%clk 0:03:00.7]} 12. d4 {[%clk 0:03:01.5]} 12...
Nbd7 {[%clk 0:02:54.2]} 13. Nxd7 {[%clk 0:03:01.4]} 13... Nxd7 {[%clk
0:02:55.1]} 14. Re1 {[%clk 0:02:55.4]} 14... Qa5 {[%clk 0:02:43.4]} 15. Nf1
{[%clk 0:02:45.7]} 15... dxe4 {[%clk 0:02:41.5]} 16. Bxe4 {[%clk 0:02:44.8]}
16... Bxe4 {[%clk 0:02:43.1]} 17. Qxe4 {[%clk 0:02:46.5]} 17... Nf6 {[%clk
0:02:37.9]} 18. Qe5 {[%clk 0:02:47.3]} 18... Qxe5 {[%clk 0:02:31.1]} 19. Rxe5
{[%clk 0:02:49.2]} 19... Nd7 {[%clk 0:02:32]} 20. Re2 {[%clk 0:02:49.4]} 20...
c5 {[%clk 0:02:33.1]} 21. Be3 {[%clk 0:02:50.5]} 21... Rfd8 {[%clk 0:02:28.1]}
22. Nd2 {[%clk 0:02:48.7]} 22... a3 {[%clk 0:02:18.6]} 23. b3 {[%clk 0:02:40.6]}
23... Rac8 {[%clk 0:02:14.9]} 24. c4 {[%clk 0:02:38.2]} 24... Bf6 {[%clk
0:02:14.5]} 25. Nf3 {[%clk 0:02:36.5]} 25... cxd4 {[%clk 0:02:05.5]} 26. Bxd4
{[%clk 0:02:34.8]} 26... Nc5 {[%clk 0:02:01.9]} 27. Bxf6 {[%clk 0:02:33.2]}
27... gxf6 {[%clk 0:02:03.8]} 28. Rc1 {[%clk 0:02:25.9]} 28... f5 {[%clk
0:02:00.9]} 29. Ne1 {[%clk 0:02:21]} 29... Ne4 {[%clk 0:01:55.5]} 30. f3 {[%clk
0:02:15.5]} 30... Nc5 {[%clk 0:01:51.4]} 31. Nc2 {[%clk 0:02:14.7]} 31... Ra8
{[%clk 0:01:49.5]} 32. Kf1 {[%clk 0:02:11.9]} 32... Kg7 {[%clk 0:01:47.2]} 33.
Ne3 {[%clk 0:02:09.7]} 33... Kf6 {[%clk 0:01:42.1]} 34. Nd1 {[%clk 0:02:01.4]}
34... Nd3 {[%clk 0:01:39.6]} 35. Rb1 {[%clk 0:01:59.6]} 35... Nb4 {[%clk
0:01:39.2]} 36. Nc3 {[%clk 0:01:59.8]} 36... Rd3 {[%clk 0:01:31.3]} 37. Nb5
{[%clk 0:01:58.8]} 37... Rxf3+ {[%clk 0:01:32.3]} 38. Kg2 {[%clk 0:02:00.2]}
38... Rd3 {[%clk 0:01:33.4]} 39. Rf1 {[%clk 0:01:56.8]} 39... h5 {[%clk
0:01:22.2]} 40. Rf4 {[%clk 0:01:56.3]} 40... Rad8 {[%clk 0:01:20.6]} 41. Rff2
{[%clk 0:01:54.6]} 41... h4 {[%clk 0:01:09.6]} 42. Nxa3 {[%clk 0:01:52.2]} 42...
hxg3 {[%clk 0:01:10]} 43. hxg3 {[%clk 0:01:54.1]} 43... Rg8 {[%clk 0:01:10.7]}
44. Rf3 {[%clk 0:01:55.4]} 44... Rxf3 {[%clk 0:01:11]} 45. Kxf3 {[%clk
0:01:57.3]} 45... Ra8 {[%clk 0:01:12.3]} 46. Nb5 {[%clk 0:01:58.7]} 46... Rxa2
{[%clk 0:01:09.1]} 47. Rxa2 {[%clk 0:01:54.2]} 47... Nxa2 {[%clk 0:01:10]} 48.
Nd6 {[%clk 0:01:55.4]} 48... Nc1 {[%clk 0:01:07.9]} 49. b4 {[%clk 0:01:55.2]}
49... Nd3 {[%clk 0:01:07.6]} 50. b5 {[%clk 0:01:47.3]} 50... Nc5 {[%clk
0:01:08.2]} 51. Ke3 {[%clk 0:01:48.2]} 51... e5 {[%clk 0:01:09]} 52. Ne8+ {[%clk
0:01:45]} 52... Kg5 {[%clk 0:01:06.2]} 53. Nd6 {[%clk 0:01:43.6]} 53... f6
{[%clk 0:01:02.7]} 54. Kf3 {[%clk 0:01:44.8]} 54... Kg6 {[%clk 0:00:41.5]} 55.
Ke3 {[%clk 0:01:43.1]} 55... Kg5 {[%clk 0:00:42.8]} 56. Kf3 {[%clk 0:01:44.2]}
56... e4+ {[%clk 0:00:35.5]} 57. Ke3 {[%clk 0:01:38.3]} 57... Kg4 {[%clk
0:00:36.7]} 58. b6 {[%clk 0:01:39.5]} 58... Kxg3 {[%clk 0:00:34.2]} 59. Nxf5+
{[%clk 0:01:40.6]} 59... Kg4 {[%clk 0:00:35.4]} 60. Nd6 {[%clk 0:01:37.6]} 60...
f5 {[%clk 0:00:36.3]} 61. Kd4 {[%clk 0:01:39.1]} 61... f4 {[%clk 0:00:25.3]} 62.
Kxc5 {[%clk 0:01:27.1]} 62... e3 {[%clk 0:00:26.5]} 63. Ne4 {[%clk 0:01:27.8]}
63... e2 {[%clk 0:00:23.1]} 64. Nf2+ {[%clk 0:01:28.7]} 64... Kf3 {[%clk
0:00:19.8]} 65. Nd3 {[%clk 0:01:30]} 65... Ke3 {[%clk 0:00:21.2]} 66. Ne1 {[%clk
0:01:30.7]} 66... f3 {[%clk 0:00:22.5]} 67. Kd6 {[%clk 0:01:29.2]} 67... f2
{[%clk 0:00:23.1]} 68. Ng2+ {[%clk 0:01:30.7]} 68... Kf3 {[%clk 0:00:21.7]} 69.
Kc7 {[%clk 0:01:30.4]} 69... Kxg2 {[%clk 0:00:22.1]} 70. Kxb7 {[%clk 0:01:31.8]}
70... e1=Q {[%clk 0:00:23.1]} 71. c5 {[%clk 0:01:33.7]} 71... f1=Q {[%clk
0:00:23.9]} 72. c6 {[%clk 0:01:35.6]} 72... Qf3 {[%clk 0:00:24.7]} 73. Kc7
{[%clk 0:01:35.4]} 73... Qe7+ {[%clk 0:00:25.1]} 74. Kb8 {[%clk 0:01:37.3]}
74... Qxc6 {[%clk 0:00:25.5]} 75. b7 {[%clk 0:01:39.2]} 75... Qcxb7# {[%clk
0:00:26.7]} 0-1

[Event "*** Titled Tuesday Blitz"]
[Site "Chess.com"]
[Date "2019.06.04"]
[Round "10"]
[White "Spring199"]
[Black "ZenBull"]
[Result "0-1"]
[WhiteElo "2207"]
[BlackElo "2117"]
[TimeControl "180+2"]
[EndTime "15:21:24 PDT"]
[Termination "ZenBull won by resignation"]

1. d4 {[%clk 0:03:01.5]} 1... Nf6 {[%clk 0:02:59.9]} 2. c4 {[%clk 0:03:01.9]}
2... e6 {[%clk 0:03:01.3]} 3. Nc3 {[%clk 0:03:01.8]} 3... Bb4 {[%clk 0:03:01.6]}
4. e3 {[%clk 0:02:59.7]} 4... O-O {[%clk 0:03:01.7]} 5. Bd3 {[%clk 0:03:00.5]}
5... d5 {[%clk 0:02:40.1]} 6. Ne2 {[%clk 0:02:58.3]} 6... c5 {[%clk 0:02:26.7]}
7. O-O {[%clk 0:02:56.5]} 7... dxc4 {[%clk 0:02:21.5]} 8. Bxc4 {[%clk 0:02:56]}
8... cxd4 {[%clk 0:02:15.4]} 9. exd4 {[%clk 0:02:55.8]} 9... Nc6 {[%clk
0:02:09.5]} 10. Bg5 {[%clk 0:02:54.7]} 10... Be7 {[%clk 0:02:09.1]} 11. Rc1
{[%clk 0:02:53.4]} 11... Bd7 {[%clk 0:02:03.9]} 12. Ng3 {[%clk 0:02:23.1]} 12...
Rc8 {[%clk 0:02:00.3]} 13. Bxf6 {[%clk 0:02:08.4]} 13... Bxf6 {[%clk 0:02:01.2]}
14. d5 {[%clk 0:02:08.3]} 14... exd5 {[%clk 0:01:32.9]} 15. Bxd5 {[%clk
0:02:01.8]} 15... Re8 {[%clk 0:01:22.7]} 16. Nh5 {[%clk 0:01:54.4]} 16... Be6
{[%clk 0:01:02]} 17. Bxe6 {[%clk 0:01:46.3]} 17... Rxe6 {[%clk 0:00:59.7]} 18.
Qg4 {[%clk 0:01:38.2]} 18... Bxc3 {[%clk 0:00:37.6]} 19. Rxc3 {[%clk 0:01:37.3]}
19... Rg6 {[%clk 0:00:39.4]} 20. Qh3 {[%clk 0:01:26.7]} 20... Rc7 {[%clk
0:00:36.3]} 21. Nf4 {[%clk 0:01:20.7]} 21... Rd6 {[%clk 0:00:34.9]} 22. Rg3
{[%clk 0:01:18.1]} 22... Rcd7 {[%clk 0:00:30.6]} 23. Qg4 {[%clk 0:01:12.9]}
23... g6 {[%clk 0:00:29.7]} 24. h4 {[%clk 0:01:09.7]} 24... Rd1 {[%clk
0:00:28.1]} 25. Rxd1 {[%clk 0:01:02.2]} 25... Rxd1+ {[%clk 0:00:28.6]} 26. Kh2
{[%clk 0:01:02.5]} 26... Qd7 {[%clk 0:00:29]} 27. Qxd7 {[%clk 0:00:48.3]} 27...
Rxd7 {[%clk 0:00:29.3]} 28. h5 {[%clk 0:00:50.2]} 28... Kf8 {[%clk 0:00:28.9]}
29. hxg6 {[%clk 0:00:50.6]} 29... hxg6 {[%clk 0:00:29.9]} 30. Re3 {[%clk
0:00:47.7]} 30... Rd2 {[%clk 0:00:30.4]} 31. Nd3 {[%clk 0:00:45.9]} 31... Nd4
{[%clk 0:00:25.5]} 32. g4 {[%clk 0:00:27.8]} 32... Nc2 {[%clk 0:00:18.6]} 33.
Rh3 {[%clk 0:00:25.1]} 33... Nd4 {[%clk 0:00:15]} 34. Kg2 {[%clk 0:00:22.1]}
34... Ne6 {[%clk 0:00:14.9]} 35. Ne5 {[%clk 0:00:15.9]} 35... Rxb2 {[%clk
0:00:14.2]} 36. Rh8+ {[%clk 0:00:15.2]} 36... Kg7 {[%clk 0:00:15.2]} 37. Rb8
{[%clk 0:00:14.9]} 37... b6 {[%clk 0:00:15.7]} 38. Rb7 {[%clk 0:00:15.4]} 38...
Kf6 {[%clk 0:00:15.1]} 39. Nc6 {[%clk 0:00:14.2]} 39... Rxa2 {[%clk 0:00:15.5]}
40. Nxa7 {[%clk 0:00:14.5]} 40... Kg5 {[%clk 0:00:11.4]} 41. Kg3 {[%clk
0:00:13.9]} 41... f5 {[%clk 0:00:10.9]} 42. gxf5 {[%clk 0:00:11.6]} 42... gxf5
{[%clk 0:00:12.3]} 43. Nc6 {[%clk 0:00:13.5]} 43... f4+ {[%clk 0:00:12.9]} 44.
Kf3 {[%clk 0:00:14.2]} 44... Ra3+ {[%clk 0:00:13.7]} 45. Ke4 {[%clk 0:00:14.4]}
45... Nc5+ {[%clk 0:00:14.5]} 46. Kd5 {[%clk 0:00:14.7]} 46... Nxb7 {[%clk
0:00:16.4]} 47. Nd4 {[%clk 0:00:14.9]} 47... Ra2 {[%clk 0:00:16.5]} 48. f3
{[%clk 0:00:14.9]} 48... Nc5 {[%clk 0:00:17.3]} 49. Nb5 {[%clk 0:00:13.6]} 49...
Nd3 {[%clk 0:00:17.7]} 50. Ke4 {[%clk 0:00:14]} 50... Rb2 {[%clk 0:00:16.6]} 51.
Nc3 {[%clk 0:00:11.9]} 51... Nc5+ {[%clk 0:00:17.1]} 52. Kd4 {[%clk 0:00:12.3]}
52... Rb3 {[%clk 0:00:17.8]} 53. Nd5 {[%clk 0:00:12.8]} 53... Rxf3 {[%clk
0:00:16.9]} 54. Nc3 {[%clk 0:00:12.4]} 54... Rxc3 {[%clk 0:00:17.6]} 55. Kxc3
{[%clk 0:00:13]} 55... f3 {[%clk 0:00:19.1]} 0-1

[Event "*** Titled Tuesday Blitz"]
[Site "Chess.com"]
[Date "2019.06.04"]
[Round "10"]
[White "TheBigBadChessDad"]
[Black "ozates"]
[Result "1-0"]
[WhiteElo "2176"]
[BlackElo "2237"]
[TimeControl "180+2"]
[EndTime "15:21:33 PDT"]
[Termination "TheBigBadChessDad won by resignation"]

1. e4 {[%clk 0:03:01.9]} 1... c5 {[%clk 0:03:00.7]} 2. Nf3 {[%clk 0:03:02.6]}
2... Nc6 {[%clk 0:03:00.9]} 3. c3 {[%clk 0:03:01.4]} 3... d5 {[%clk 0:02:57.4]}
4. exd5 {[%clk 0:03:02.2]} 4... Qxd5 {[%clk 0:02:59.2]} 5. d4 {[%clk 0:03:03.6]}
5... Bg4 {[%clk 0:03:00.6]} 6. dxc5 {[%clk 0:02:38.5]} 6... Qxd1+ {[%clk
0:02:57.5]} 7. Kxd1 {[%clk 0:02:39.6]} 7... e5 {[%clk 0:02:43.1]} 8. b4 {[%clk
0:02:39.6]} 8... e4 {[%clk 0:02:44.1]} 9. h3 {[%clk 0:02:40.9]} 9... Bxf3+
{[%clk 0:02:44.9]} 10. gxf3 {[%clk 0:02:41.8]} 10... exf3 {[%clk 0:02:46.8]} 11.
Be3 {[%clk 0:02:24.6]} 11... O-O-O+ {[%clk 0:02:48.7]} 12. Kc2 {[%clk
0:02:25.5]} 12... Nf6 {[%clk 0:02:47.7]} 13. Nd2 {[%clk 0:02:24.5]} 13... Nd5
{[%clk 0:02:36.2]} 14. Nxf3 {[%clk 0:02:24.7]} 14... Nxe3+ {[%clk 0:02:37.3]}
15. fxe3 {[%clk 0:02:24.7]} 15... g6 {[%clk 0:02:34.1]} 16. Nd4 {[%clk
0:02:23.7]} 16... Bh6 {[%clk 0:02:33]} 17. Bg2 {[%clk 0:02:12.2]} 17... Ne5
{[%clk 0:02:30.4]} 18. e4 {[%clk 0:02:01.9]} 18... Nc4 {[%clk 0:02:11.1]} 19.
Kb3 {[%clk 0:01:58.5]} 19... Nd2+ {[%clk 0:02:03.1]} 20. Kc2 {[%clk 0:01:58.4]}
20... Nc4 {[%clk 0:02:04.1]} 21. Bf3 {[%clk 0:01:51.7]} 21... Rhe8 {[%clk
0:01:57.4]} 22. Rhe1 {[%clk 0:01:48.4]} 22... Re5 {[%clk 0:01:33.7]} 23. Rad1
{[%clk 0:01:46.4]} 23... Ne3+ {[%clk 0:01:28.9]} 24. Rxe3 {[%clk 0:01:41.9]}
24... Bxe3 {[%clk 0:01:30.8]} 25. Kd3 {[%clk 0:01:41.9]} 25... Bg5 {[%clk
0:01:19.5]} 26. Kc4 {[%clk 0:01:34.6]} 26... Bf6 {[%clk 0:01:07.4]} 27. Rf1
{[%clk 0:01:33.3]} 27... Bg5 {[%clk 0:00:56.9]} 28. Bg4+ {[%clk 0:01:30.6]}
28... Kb8 {[%clk 0:00:58]} 29. Rxf7 {[%clk 0:01:29]} 29... Rxe4 {[%clk
0:00:58.9]} 30. Rxh7 {[%clk 0:01:21.3]} 30... Be3 {[%clk 0:00:49.9]} 31. Rd7
{[%clk 0:01:22]} 31... Rxd7 {[%clk 0:00:48]} 32. Bxd7 {[%clk 0:01:23.1]} 32...
Bxd4 {[%clk 0:00:47.1]} 33. cxd4 {[%clk 0:01:22.5]} 33... Re2 {[%clk 0:00:47.5]}
34. a4 {[%clk 0:01:22.7]} 34... Kc7 {[%clk 0:00:47.3]} 35. Bg4 {[%clk
0:01:22.6]} 35... Rc2+ {[%clk 0:00:42.7]} 36. Kb3 {[%clk 0:01:20]} 36... Rd2
{[%clk 0:00:42.4]} 37. Kc3 {[%clk 0:01:21]} 37... Ra2 {[%clk 0:00:43.4]} 38. a5
{[%clk 0:01:20.3]} 38... b5 {[%clk 0:00:43.8]} 39. d5 {[%clk 0:01:01.9]} 39...
Ra3+ {[%clk 0:00:39.3]} 40. Kd4 {[%clk 0:01:03]} 40... Rb3 {[%clk 0:00:38.3]}
41. d6+ {[%clk 0:01:04]} 41... Kb7 {[%clk 0:00:38.2]} 42. Kd5 {[%clk 0:01:00.6]}
42... Rd3+ {[%clk 0:00:39.2]} 43. Ke6 {[%clk 0:00:57.7]} 43... Kc6 {[%clk
0:00:40]} 44. Ke7 {[%clk 0:00:56.8]} 44... Re3+ {[%clk 0:00:40]} 45. Be6 {[%clk
0:00:52.7]} 45... Rd3 {[%clk 0:00:36]} 46. Kf7 {[%clk 0:00:42.9]} 46... g5
{[%clk 0:00:32.9]} 47. Kf6 {[%clk 0:00:36.2]} 47... Rd4 {[%clk 0:00:31.7]} 48.
Ke7 {[%clk 0:00:34.8]} 48... Rxb4 {[%clk 0:00:23]} 49. d7 {[%clk 0:00:28]} 49...
Rd4 {[%clk 0:00:23.6]} 50. d8=Q {[%clk 0:00:29.1]} 50... Rxd8 {[%clk 0:00:24.4]}
51. Kxd8 {[%clk 0:00:30.2]} 51... b4 {[%clk 0:00:20.7]} 52. Kc8 {[%clk
0:00:24.1]} 52... a6 {[%clk 0:00:21.9]} 53. Bc4 {[%clk 0:00:23.3]} 53... Kxc5
{[%clk 0:00:21.5]} 54. Bxa6 {[%clk 0:00:24.4]} 54... b3 {[%clk 0:00:19.5]} 55.
Bd3 {[%clk 0:00:24.9]} 55... b2 {[%clk 0:00:20.4]} 56. a6 {[%clk 0:00:24.8]}
56... Kb6 {[%clk 0:00:21.2]} 57. Kd7 {[%clk 0:00:18.2]} 57... b1=Q {[%clk
0:00:21.8]} 58. Bxb1 {[%clk 0:00:19.2]} 58... Kxa6 {[%clk 0:00:23.7]} 59. Ke6
{[%clk 0:00:20.6]} 59... Kb7 {[%clk 0:00:23.1]} 60. Kf5 {[%clk 0:00:22]} 60...
Kc7 {[%clk 0:00:24]} 61. Kxg5 {[%clk 0:00:23.5]} 61... Kd7 {[%clk 0:00:25.6]}
62. Kg6 {[%clk 0:00:25]} 62... Ke7 {[%clk 0:00:27.5]} 63. Kg7 {[%clk 0:00:23.5]}
63... Ke6 {[%clk 0:00:29.4]} 64. h4 {[%clk 0:00:24.9]} 1-0